fUST/lending_fUST_20260404
["ID","MTS","AMOUNT","RATE_DAILY","PERIOD"]
[419622639,1775243444631,-1708.61524831,0.00024098,2]
[419622642,1775243444642,-1708.61524831,0.00024098,2]
[419622644,1775243444651,-693.3919763,0.00024099,2]
[419622646,1775243444660,-1708.61524831,0.00024099,2]
[419622648,1775243444670,-719.04747942,0.00024154,2]
[419622650,1775243444679,-500.0,0.00024173,2]
[419622652,1775243444688,-500.0,0.00024173,2]
[419622654,1775243444697,-500.0,0.00024173,2]
[419622656,1775243444707,-500.0,0.00024173,2]
[419622658,1775243444717,-500.0,0.00024173,2]
[419622659,1775243444728,-151.0,0.00024184,2]
[419622662,1775243444737,-599.60298507,0.00024184,2]
[419622663,1775243444747,-156.587,0.00024184,2]
[419622665,1775243444756,-500.0,0.00024195,2]
[419622668,1775243444766,-500.0,0.00024195,2]
[419622669,1775243444776,-500.0,0.00024195,2]
[419622672,1775243444786,-186.79746862,0.00024195,2]
[419622674,1775243444795,-500.0,0.00024195,2]
[419622676,1775243444805,-500.0,0.00024195,2]
[419622678,1775243444814,-500.0,0.00024195,2]
[419622680,1775243444824,-500.0,0.00024195,2]
[419622682,1775243444833,-500.0,0.00024195,2]
[419622684,1775243444842,-500.0,0.00024195,2]
[419622686,1775243444851,-572.33958458,0.00024195,2]
[419622687,1775243444860,-500.0,0.00024195,2]
[419622689,1775243444869,-500.0,0.00024195,2]
[419622691,1775243444879,-500.0,0.00024195,2]
[419622693,1775243444888,-500.0,0.00024195,2]
[419622696,1775243444899,-500.0,0.00024195,2]
[419622698,1775243444908,-500.0,0.00024195,2]
[419622700,1775243444918,-500.0,0.00024195,2]
[419622702,1775243444929,-500.0,0.00024195,2]
[419622704,1775243444939,-500.0,0.00024195,2]
[419622706,1775243444948,-500.0,0.00024195,2]
[419622708,1775243444957,-500.0,0.00024195,2]
[419622710,1775243444966,-500.0,0.00024195,2]
[419622712,1775243444976,-500.0,0.00024195,2]
[419622713,1775243444985,-500.0,0.00024195,2]
[419622715,1775243444995,-500.0,0.00024195,2]
[419622718,1775243445006,-500.0,0.00024195,2]
[419622719,1775243445016,-500.0,0.00024195,2]
[419622722,1775243445028,-500.0,0.00024195,2]
[419622724,1775243445037,-500.0,0.00024195,2]
[419622726,1775243445048,-500.0,0.00024195,2]
[419622728,1775243445058,-500.0,0.00024195,2]
[419622730,1775243445067,-500.0,0.00024195,2]
[419622732,1775243445077,-500.0,0.00024195,2]
[419622734,1775243445087,-500.0,0.00024195,2]
[419622736,1775243445096,-500.0,0.00024195,2]
[419622738,1775243445105,-500.0,0.00024195,2]
[419622740,1775243445115,-500.0,0.00024195,2]
[419622742,1775243445124,-500.0,0.00024195,2]
[419622744,1775243445133,-500.0,0.00024195,2]
[419622746,1775243445142,-500.0,0.00024195,2]
[419622748,1775243445151,-500.0,0.00024195,2]
[419622750,1775243445160,-500.0,0.00024195,2]
[419622752,1775243445169,-500.0,0.00024195,2]
[419622754,1775243445178,-500.0,0.00024195,2]
[419622756,1775243445187,-217.35627818,0.00024195,2]
[419622758,1775243445196,-500.0,0.00024195,2]
[419622760,1775243445205,-500.0,0.00024195,2]
[419622762,1775243445214,-500.0,0.00024195,2]
[419622764,1775243445223,-500.0,0.00024195,2]
[419622766,1775243445232,-500.0,0.00024195,2]
[419622768,1775243445243,-500.0,0.00024195,2]
[419622770,1775243445252,-500.0,0.00024195,2]
[419622772,1775243445261,-500.0,0.00024195,2]
[419622774,1775243445271,-500.0,0.00024195,2]
[419622776,1775243445281,-500.0,0.00024195,2]
[419622778,1775243445290,-500.0,0.00024195,2]
[419622780,1775243445299,-500.0,0.00024195,2]
[419622782,1775243445309,-500.0,0.00024195,2]
[419622784,1775243445319,-500.0,0.00024195,2]
[419622786,1775243445328,-500.0,0.00024195,2]
[419622788,1775243445338,-500.0,0.00024195,2]
[419622790,1775243445348,-500.0,0.00024195,2]
[419622792,1775243445358,-500.0,0.00024195,2]
[419622794,1775243445368,-500.0,0.00024195,2]
[419622796,1775243445378,-500.0,0.00024195,2]
[419622798,1775243445387,-500.0,0.00024195,2]
[419622800,1775243445397,-500.0,0.00024195,2]
[419622802,1775243445406,-500.0,0.00024195,2]
[419622804,1775243445416,-500.0,0.00024195,2]
[419622806,1775243445425,-500.0,0.00024195,2]
[419622808,1775243445435,-500.0,0.00024195,2]
[419622810,1775243445445,-500.0,0.00024195,2]
[419622813,1775243445455,-500.0,0.00024195,2]
[419622815,1775243445465,-500.0,0.00024195,2]
[419622817,1775243445474,-500.0,0.00024195,2]
[419622819,1775243445484,-500.0,0.00024195,2]
[419622821,1775243445493,-500.0,0.00024195,2]
[419622823,1775243445503,-500.0,0.00024195,2]
[419622825,1775243445512,-495.28978241,0.00024195,2]
[419622827,1775243445521,-500.0,0.00024195,2]
[419622829,1775243445530,-500.0,0.00024195,2]
[419622831,1775243445539,-500.0,0.00024195,2]
[419622833,1775243445548,-500.0,0.00024195,2]
[419622835,1775243445558,-500.0,0.00024195,2]
[419622837,1775243445567,-500.0,0.00024195,2]
[419622839,1775243445577,-500.0,0.00024195,2]
[419622841,1775243445586,-500.0,0.00024195,2]
[419622843,1775243445595,-500.0,0.00024195,2]
[419622845,1775243445604,-500.0,0.00024195,2]
[419622847,1775243445614,-650.0,0.00024195,2]
[419622849,1775243445623,-26720.00129692,0.00024199,2]
[419622851,1775243445633,-656.62,0.00024199,2]
[419622853,1775243445642,-656.62,0.00024199,2]
[419622855,1775243445651,-656.62,0.00024199,2]
[419622857,1775243445660,-656.62,0.00024199,2]
[419622859,1775243445670,-656.62,0.00024199,2]
[419622861,1775243445679,-656.62,0.00024199,2]
[419622862,1775243445688,-656.62,0.00024199,2]
[419622864,1775243445698,-656.62,0.00024199,2]
[419622866,1775243445707,-656.62,0.00024199,2]
[419622869,1775243445716,-656.62,0.00024199,2]
[419622871,1775243445726,-656.62,0.00024199,2]
[419622873,1775243445735,-656.62,0.00024199,2]
[419622875,1775243445745,-656.62,0.00024199,2]
[419622877,1775243445754,-656.62,0.00024199,2]
[419622879,1775243445763,-656.62,0.00024199,2]
[419622881,1775243445773,-656.62,0.00024199,2]
[419622883,1775243445782,-656.62,0.00024199,2]
[419622885,1775243445792,-656.62,0.00024199,2]
[419622887,1775243445802,-656.62,0.00024199,2]
[419622889,1775243445812,-656.62,0.00024199,2]
[419622890,1775243445821,-656.62,0.00024199,2]
[419622893,1775243445831,-656.62,0.00024199,2]
[419622895,1775243445840,-656.62,0.00024199,2]
[419622897,1775243445850,-656.62,0.00024199,2]
[419622899,1775243445859,-936.57,0.00024199,2]
[419622901,1775243445869,-745.65223616,0.00024209,2]
[419622903,1775243445878,-2992.8149289,0.00024225,64]
[419622904,1775243445888,-773.2413689,0.00024264,2]
[419622907,1775243445899,-200.0,0.00024272,2]
[419622909,1775243445908,-500.0,0.00024273,2]
[419622911,1775243445917,-500.0,0.00024299,2]
[419622913,1775243445926,-500.0,0.00024299,2]
[419622915,1775243445936,-500.0,0.00024299,2]
[419622917,1775243445945,-500.0,0.00024299,2]
[419622919,1775243445954,-500.0,0.00024299,2]
[419622921,1775243445964,-500.0,0.00024299,2]
[419622923,1775243445974,-500.0,0.00024299,2]
[419622925,1775243445983,-500.0,0.00024299,2]
[419622927,1775243445993,-500.0,0.00024299,2]
[419622929,1775243446002,-508.28466794,0.00024299,2]
[419622931,1775243446011,-801.85129955,0.00024319,2]
[419622933,1775243446021,-831.51979763,0.00024374,2]
[419622935,1775243446030,-20882.6680793,0.00024395,2]
[419622937,1775243446040,-1420.9343798,0.00024395,2]
[419622939,1775243446050,-2487.15318209,0.00024427,2]
[419622941,1775243446060,-862.28603014,0.00024429,2]
[419622943,1775243446070,-894.19061326,0.00024484,2]
[419622945,1775243446079,-2087.773115,0.00024536,2]
[419622947,1775243446088,-927.27566595,0.00024539,2]
[419622949,1775243446098,-276.34,0.00024651,7]
[419622951,1775243446108,-1240.0,0.00024658,5]
[419622954,1775243446118,-2203.0,0.00024677,2]
[419622956,1775243446127,-1000.0,0.00024721,2]
[419622958,1775243446137,-1000.0,0.00024721,2]
[419622960,1775243446147,-762.44084879,0.00024732,2]
[419622962,1775243446157,-169.23430289,0.00024899,2]
[419622964,1775243446166,-252.13955536,0.00024899,2]
[419622966,1775243446176,-288.15949184,0.00024899,2]
[419622968,1775243446186,-449.79895679,0.00024899,2]
[419622970,1775243446195,-304.31712345,0.00024899,2]
[419622972,1775243446205,-15424.43687053,0.000249,7]
[419622974,1775243446214,-270.83333333,0.000249,7]
[419622976,1775243446224,-1240.0,0.00024932,5]
[419622978,1775243446233,-160.0,0.00024935,14]
[419622980,1775243446243,-175.163658,0.00024935,14]
[419622982,1775243446253,-190.327317,0.00024935,14]
[419622984,1775243446262,-160.0,0.00024935,14]
[419622986,1775243446272,-1126.59575,0.00024935,14]
[419622988,1775243446282,-2093.1915,0.00024935,14]
[419622990,1775243446291,-160.0,0.00024935,14]
[419622992,1775243446301,-713.33221,0.00024935,14]
[419622994,1775243446311,-1266.664421,0.00024935,14]
[419622996,1775243446321,-200.97,0.00024948,7]
[419622998,1775243446331,-166.0,0.00024967,3]
[419623000,1775243446340,-155.0,0.00024967,3]
[419623002,1775243446350,-946.0,0.00024967,3]
[419623004,1775243446360,-200.0,0.00024967,3]
[419623006,1775243446369,-155.0,0.00024967,3]
[419623008,1775243446379,-946.0,0.00024967,3]
[419623010,1775243446388,-166.0,0.00024967,3]
[419623012,1775243446399,-166.0,0.00024967,3]
[419623014,1775243446409,-946.0,0.00024967,3]
[419623017,1775243446419,-166.0,0.00024967,3]
[419623019,1775243446429,-159.6342459,0.00024967,3]
[419623021,1775243446439,-647.0,0.00024967,3]
[419623023,1775243446448,-166.0,0.00024967,3]
[419623025,1775243446458,-946.0,0.00024967,3]
[419623027,1775243446467,-172.0,0.00024967,3]
[419623029,1775243446477,-166.0,0.00024967,3]
[419623031,1775243446486,-647.0,0.00024967,3]
[419623033,1775243446495,-356.0,0.00024967,3]
[419623035,1775243446505,-647.0,0.00024967,3]
[419623037,1775243446513,-166.61889007,0.00024967,3]
[419623039,1775243446523,-178.44251733,0.00024973,8]
[419623041,1775243446533,-2579.17784983,0.00024975,2]
[419623043,1775243446542,-136499.999999,0.00025,4]
[419623045,1775243446552,-158.0,0.00025,2]
[419623047,1775243446561,-234.0,0.00025,2]
[419623049,1775243446571,-151.0,0.00025,2]
[419623051,1775243446581,-151.0,0.00025,2]
[419623053,1775243446590,-151.0,0.00025,2]
[419623055,1775243446600,-40423.57069486,0.00025,15]
[419623057,1775243446614,-26720.00000001,0.00025,15]
[419623105,1775243447077,-193.67528513,0.00021972,2]
[419623106,1775243447087,-348.26689771,0.00024904,2]
[419623107,1775243447096,-26593.0544635,0.00025,15]
[419623108,1775243447106,-499.99999901,0.00025,2]
[419623109,1775243447116,-343.61109014,0.00025119,2]
[419623110,1775243447125,-160.0,0.00025122,3]
[419623111,1775243447135,-160.0,0.00025122,5]
[419623112,1775243447144,-1240.0,0.00025205,5]
[419623113,1775243447154,-800.0,0.00025259,2]
[419623114,1775243447164,-1501.55993991,0.00025268,2]
[419623115,1775243447173,-1500.0,0.00025268,2]
[419623116,1775243447183,-800.0,0.00025272,2]
[419623117,1775243447193,-11575.71177812,0.000253,2]
[419623118,1775243447202,-800.0,0.00025344,2]
[419623119,1775243447212,-3744.67969914,0.00025344,2]
[419623121,1775243447222,-800.0,0.00025361,2]
[419623132,1775243447324,-800.0,0.00025387,2]
[419623134,1775243447335,-16.6065623,0.0002542,2]
[419623137,1775243447347,-2071.1665527,0.0002542,2]
[419623138,1775243447357,-270.83333333,0.00025422,3]
[419623141,1775243447368,-22662.77773984,0.00025444,2]
[419623143,1775243447379,-802.0264,0.00025444,2]
[419626727,1775243484567,3260.807257,0.00028185,120]
[419627505,1775243512639,3517.39154,0.000277,120]
[419627506,1775243564053,167.53848747,0.00034773,120]
[419627507,1775243564336,167.53848747,0.00034773,120]
[419627508,1775243564631,167.53848747,0.00034773,120]
[419627509,1775243564923,167.53848747,0.00034773,120]
[419627510,1775243565227,167.53848747,0.00034773,120]
[419627511,1775243565533,167.53848747,0.00034773,120]
[419627512,1775243565819,167.53848747,0.00034773,120]
[419627513,1775243566429,167.53848747,0.00034773,120]
[419627514,1775243575775,3770.145397,0.0002744,120]
[419627518,1775243840366,151.0,0.00034745,120]
[419627562,1775244631721,-300.0,9.999e-05,2]
[419627564,1775244631732,-1200.0,9.999e-05,2]
[419627566,1775244631742,-4966.31291636,0.0001,2]
[419627569,1775244631755,-17907.83203813,0.0001,2]
[419627572,1775244631777,-979.24795853,0.0001,2]
[419627574,1775244631786,-2130.23208091,0.0001,2]
[419627576,1775244631798,-2711.43230879,0.0001,2]
[419627578,1775244631810,-4891.44305751,0.0001,2]
[419627580,1775244631819,-964.55094802,0.0001,2]
[419627582,1775244631829,-448.0,0.00010999,2]
[419627584,1775244631839,-1000.0,0.00013699,2]
[419627586,1775244631848,-399.11714312,0.00016985,2]
[419627920,1775244638081,-600.88285688,0.00016985,2]
[419627922,1775244638090,-399.11714312,0.000196,2]
[419627923,1775244638101,-100.88285688,0.000196,2]
[419627925,1775244638111,-248.50492373,0.00019662,2]
[419627927,1775244638120,-1000.0,0.00020148,2]
[419627929,1775244638129,-1500.0,0.00020696,2]
[419627931,1775244638138,-1000.0,0.00021244,2]
[419627933,1775244638147,-500.0,0.00021326,2]
[419627935,1775244638157,-396.92662051,0.00021326,2]
[419627937,1775244638166,-500.0,0.00021326,2]
[419627939,1775244638175,-550.1333337,0.00021326,2]
[419627941,1775244638184,-500.0,0.00021326,2]
[419627943,1775244638193,-500.0,0.00021326,2]
[419627945,1775244638202,-500.0,0.00021326,2]
[419627947,1775244638211,-500.0,0.00021326,2]
[419627949,1775244638220,-500.0,0.00021326,2]
[419627951,1775244638229,-500.0,0.00021326,2]
[419627953,1775244638239,-500.0,0.00021326,2]
[419627955,1775244638248,-500.0,0.00021326,2]
[419627957,1775244638258,-500.0,0.00021326,2]
[419627959,1775244638267,-500.0,0.00021326,2]
[419627962,1775244638286,-500.0,0.00021326,2]
[419627965,1775244638298,-500.0,0.00021326,2]
[419627967,1775244638308,-500.0,0.00021326,2]
[419627969,1775244638317,-500.0,0.00021326,2]
[419627971,1775244638327,-500.0,0.00021326,2]
[419627973,1775244638337,-500.0,0.00021326,2]
[419627975,1775244638347,-500.0,0.00021326,2]
[419627977,1775244638357,-500.0,0.00021326,2]
[419627979,1775244638366,-500.0,0.00021326,2]
[419627981,1775244638376,-248.79006057,0.00021326,2]
[419627983,1775244638386,-500.0,0.00021326,2]
[419627985,1775244638397,-500.0,0.00021326,2]
[419627987,1775244638406,-500.0,0.00021326,2]
[419627989,1775244638417,-500.0,0.00021326,2]
[419627991,1775244638427,-275.0,0.00022,2]
[419627993,1775244638437,-158.94628366,0.00022,2]
[419627995,1775244638446,-160.0,0.00022,2]
[419627998,1775244638456,-275.0,0.00023,2]
[419628000,1775244638466,-270.83333333,0.00023,2]
[419628002,1775244638475,-160.0,0.00023,2]
[419628004,1775244638485,-2398.4119403,0.0002373,2]
[419628006,1775244638494,-275.0,0.00024,2]
[419628008,1775244638504,-160.0,0.00024,2]
[419628010,1775244638513,-1443.81928526,0.00024278,2]
[419628012,1775244638523,-151.0,0.000243,10]
[419628014,1775244638533,-1240.0,0.00024658,5]
[419628016,1775244638542,-168.37274603,0.00024681,2]
[419628018,1775244638552,-151.0,0.000247,8]
[419628020,1775244638562,-320.0,0.00024738,2]
[419628022,1775244638572,-184.0,0.00024739,2]
[419628024,1775244638582,-233.03307065,0.00024899,2]
[419628026,1775244638591,-215.68082412,0.00024899,2]
[419628028,1775244638601,-388.22548342,0.00024899,2]
[419628030,1775244638610,-690.17863719,0.00024899,2]
[419628032,1775244638621,-1077.32571649,0.00024899,2]
[419628034,1775244638630,-398.85273219,0.00024899,2]
[419628036,1775244638640,-455.83169393,0.00024899,2]
[419628038,1775244638650,-711.52478474,0.00024899,2]
[419628040,1775244638659,-200.0,0.000249,2]
[419628042,1775244638669,-170.882,0.00024931,2]
[419628044,1775244638680,-1240.0,0.00024932,5]
[419628046,1775244638689,-369.0,0.00024997,2]
[419628048,1775244638699,-178.978,0.00024999,8]
[419628050,1775244638709,-275.0,0.00025,2]
[419628052,1775244638718,-160.0,0.00025,2]
[419628054,1775244638728,-32036.229574,0.0002505,2]
[419628056,1775244638737,-500.0,0.00025058,2]
[419628059,1775244638747,-500.0,0.00025058,2]
[419628061,1775244638757,-500.0,0.00025058,2]
[419628063,1775244638767,-500.0,0.00025058,2]
[419628065,1775244638777,-500.0,0.00025058,2]
[419628067,1775244638786,-593.82006103,0.00025058,2]
[419628069,1775244638795,-500.0,0.00025058,2]
[419628071,1775244638806,-229.46015854,0.00025058,2]
[419628073,1775244638816,-172.33883999,0.00025058,2]
[419628075,1775244638825,-500.0,0.00025058,2]
[419628077,1775244638835,-500.0,0.00025058,2]
[419628079,1775244638844,-500.0,0.00025058,2]
[419628081,1775244638855,-500.0,0.00025058,2]
[419628083,1775244638864,-8859.8925093,0.0002506,2]
[419628085,1775244638874,-311.452023,0.0002506,2]
[419628087,1775244638883,-5622.6191939,0.0002506,2]
[419628089,1775244638893,-4477.3059618,0.0002506,2]
[419628091,1775244638902,-200.0,0.0002506,2]
[419628093,1775244638912,-500.0,0.00025073,2]
[419628095,1775244638922,-500.0,0.00025073,2]
[419628097,1775244638932,-151.0,0.000251,15]
[419628099,1775244638941,-392.30569034,0.00025135,2]
[419628101,1775244638952,-1240.0,0.00025205,5]
[419628103,1775244638961,-3826.45315071,0.00025344,2]
[419628105,1775244638970,-6831.22474225,0.00025344,2]
[419628107,1775244638980,-340.97917669,0.00025421,3]
[419628109,1775244638989,-162.380719,0.00025421,3]
[419628111,1775244638998,-165.187647,0.00025434,2]
[419628113,1775244639008,-384434.754888,0.00025434,2]
[419628115,1775244639017,-507.58,0.00025434,2]
[419628117,1775244639026,-507.58,0.00025434,2]
[419628119,1775244639036,-507.58,0.00025434,2]
[419628121,1775244639046,-507.58,0.00025434,2]
[419628123,1775244639055,-507.58,0.00025434,2]
[419628125,1775244639065,-507.58,0.00025434,2]
[419628127,1775244639075,-507.58,0.00025434,2]
[419628129,1775244639084,-507.58,0.00025434,2]
[419628131,1775244639094,-507.58,0.00025434,2]
[419628133,1775244639103,-507.58,0.00025434,2]
[419628135,1775244639113,-507.58,0.00025434,2]
[419628137,1775244639122,-507.58,0.00025434,2]
[419628139,1775244639131,-507.58,0.00025434,2]
[419628141,1775244639141,-507.58,0.00025434,2]
[419628143,1775244639150,-507.58,0.00025434,2]
[419628145,1775244639160,-507.58,0.00025434,2]
[419628147,1775244639169,-507.58,0.00025434,2]
[419628149,1775244639178,-507.58,0.00025434,2]
[419628151,1775244639189,-507.58,0.00025434,2]
[419628152,1775244639199,-792.94,0.00025434,2]
[419628154,1775244639209,-2212330.20682906,0.00025444,2]
[419628157,1775244639223,-1310685.51432934,0.00025444,2]
[419628274,1775244640764,-5947.41580738,0.00025444,2]
[419628340,1775244642947,550.13170473,0.0003287,120]
[419628345,1775244643265,-168.37274603,0.00024681,2]
[419628346,1775244643276,-37746.97100922,0.00025444,2]
[419628360,1775244646088,-168.37274604,0.00024681,2]
[419628361,1775244646099,-627.34509962,0.00025444,2]
[419628366,1775244646365,-8868.57946761,0.00025444,2]
[419628380,1775244672272,1769.4392,0.00028185,120]
[419628384,1775244683928,1097.655584,0.00028185,120]
[419628385,1775244762401,1678.08063,0.00028185,120]
[419628386,1775244772572,1231.015371,0.00027709,120]
[419628388,1775244853084,2289.06414,0.0002744,120]
[419628389,1775244861534,1313.73625,0.0002744,120]
[419628390,1775244938439,-300.0,0.0001,2]
[419628391,1775244938469,-88.59522378,0.00013699,2]
[419628392,1775245195326,614.0,0.0003,120]
[419628395,1775245425505,3432.0,0.00030137,120]
[419628435,1775245831939,-399.29698368,0.00011996,2]
[419628438,1775245831950,-4261.28249446,0.00011996,2]
[419628628,1775245838273,-339.42052186,0.00011996,2]
[419628630,1775245838282,-3410.61757767,0.00012117,2]
[419628893,1775245840888,-1125.34589103,0.00012117,2]
[419629159,1775245843351,-464.0365313,0.00012117,2]
[419629161,1775245843362,-471.66531225,0.00013,2]
[419629163,1775245843372,-911.40477622,0.00013699,2]
[419629165,1775245843382,-606.40387914,0.00014175,2]
[419629167,1775245843391,-1659.46025327,0.00016956,2]
[419629169,1775245843401,-1948.79527273,0.00018347,2]
[419629170,1775245843411,-2293.2811934,0.00021128,17]
[419629172,1775245843421,-160.0,0.00022,2]
[419629174,1775245843430,-220.0,0.00022,2]
[419629176,1775245843440,-2637.76711424,0.00022518,26]
[419629178,1775245843450,-163.0,0.00023,2]
[419629180,1775245843460,-220.0,0.00023,2]
[419629182,1775245843470,-220.0,0.00024,2]
[419629184,1775245843480,-500.0,0.00024042,5]
[419629186,1775245843490,-324.9282387,0.00024117,2]
[419629188,1775245843500,-270.83333333,0.00024397,2]
[419629190,1775245843510,-1240.0,0.00024658,5]
[419629192,1775245843519,-168.37274604,0.00024681,2]
[419629194,1775245843529,-2173.0,0.00024793,2]
[419629196,1775245843540,-1405.0,0.00024793,2]
[419629198,1775245843550,-2998.04587568,0.000249,2]
[419629199,1775245843560,-1240.0,0.00024932,5]
[419629201,1775245843571,-1400.01426296,0.00024949,4]
[419629202,1775245843581,-220.0,0.00025,2]
[419629204,1775245843591,-1240.0,0.00025205,5]
[419629206,1775245843601,-394.4592593,0.00025223,2]
[419629208,1775245843611,-500.0,0.00025223,2]
[419629210,1775245843621,-583.19889562,0.00025223,2]
[419629211,1775245843630,-20493.35768017,0.00025224,2]
[419629457,1775245846680,-2431.0,0.00011996,2]
[419637900,1775246333354,3433.0,0.00030137,120]
[419637901,1775246481049,-1000.0,0.00011181,2]
[419637904,1775246756579,-5000.0,0.00010958,2]
[419637905,1775246807264,-4038.7,0.00010848,2]
[419637945,1775247002727,7062.29212004,7.6e-05,2]
[419637946,1775247004580,1504.88817285,8.5e-05,7]
[419637955,1775247032260,-1280.11762686,0.00010633,2]
[419637957,1775247032272,-334.45923056,0.00010633,2]
[419637959,1775247032315,-515.6773213,0.00010633,2]
[419637960,1775247032537,-2869.74582128,0.00010633,2]
[419637961,1775247032547,-1268.82299158,0.0001074,2]
[419638004,1775247038393,-3731.17700842,0.0001074,2]
[419638006,1775247038402,-83.61780423,0.0001074,2]
[419638011,1775247038446,-487.38219577,0.0001074,2]
[419638013,1775247038455,-220.6781468,0.00011408,2]
[419638015,1775247038464,-1000.0,0.00013699,2]
[419638017,1775247038474,-154.0,0.00022,2]
[419638019,1775247038484,-224.0,0.00022,2]
[419638022,1775247038493,-2053.60979421,0.00022098,2]
[419638024,1775247038505,-4637.95554559,0.00022098,2]
[419638026,1775247038514,-154.0,0.00023,2]
[419638028,1775247038524,-224.0,0.00023,2]
[419638030,1775247038533,-270.83333333,0.00023,2]
[419638032,1775247038543,-175.64378753,0.00023342,9]
[419638034,1775247038553,-154.0,0.00024,2]
[419638036,1775247038563,-224.0,0.00024,2]
[419638038,1775247038572,-1957.85600003,0.0002401,2]
[419638040,1775247038581,-2398.4119403,0.0002401,2]
[419638042,1775247038590,-500.0,0.00024012,5]
[419638045,1775247038599,-2487.15318209,0.00024558,2]
[419638048,1775247038608,-200.0,0.00024624,2]
[419638051,1775247038617,-151.5,0.00024624,2]
[419638054,1775247038627,-151.5,0.00024624,2]
[419638057,1775247038636,-151.5,0.00024624,2]
[419638060,1775247038645,-221.1372934,0.00024624,2]
[419638063,1775247038656,-151.5,0.00024624,2]
[419638066,1775247038665,-298.5,0.00024624,2]
[419638068,1775247038675,-1240.0,0.00024658,5]
[419638070,1775247038685,-500.0,0.00024658,2]
[419638072,1775247038694,-500.0,0.00024658,2]
[419638074,1775247038703,-500.0,0.00024658,2]
[419638077,1775247038712,-500.0,0.00024658,2]
[419638079,1775247038722,-500.0,0.00024658,2]
[419638081,1775247038731,-319.43135939,0.00024658,2]
[419638083,1775247038741,-2669.58863403,0.00024693,2]
[419638085,1775247038751,-1106.67,0.00024694,2]
[419638087,1775247038759,-500.0,0.00024697,2]
[419638089,1775247038769,-500.0,0.00024697,2]
[419638091,1775247038778,-500.0,0.00024697,2]
[419638093,1775247038787,-615.67404272,0.00024697,2]
[419638095,1775247038797,-185.84479652,0.00024697,2]
[419638097,1775247038806,-370.63718799,0.00024697,2]
[419638099,1775247038817,-500.0,0.00024697,2]
[419638101,1775247038826,-500.0,0.00024697,2]
[419638102,1775247038835,-500.0,0.00024697,2]
[419638105,1775247038845,-500.0,0.00024697,2]
[419638106,1775247038854,-500.0,0.00024697,2]
[419638108,1775247038865,-500.0,0.00024697,2]
[419638111,1775247038875,-500.0,0.00024697,2]
[419638113,1775247038885,-500.0,0.00024697,2]
[419638114,1775247038894,-500.0,0.00024697,2]
[419638116,1775247038903,-500.0,0.00024697,2]
[419638118,1775247038913,-500.0,0.00024697,2]
[419638120,1775247038921,-417.91829091,0.00024697,2]
[419638122,1775247038931,-500.0,0.00024697,2]
[419638124,1775247038940,-500.0,0.00024697,2]
[419638126,1775247038950,-500.0,0.00024697,2]
[419638128,1775247038963,-500.0,0.00024697,2]
[419638130,1775247038976,-500.0,0.00024697,2]
[419638133,1775247038989,-500.0,0.00024697,2]
[419638135,1775247039001,-500.0,0.00024697,2]
[419638137,1775247039014,-500.0,0.00024697,2]
[419638139,1775247039026,-500.0,0.00024697,2]
[419638142,1775247039038,-500.0,0.00024697,2]
[419638144,1775247039048,-500.0,0.00024697,2]
[419638146,1775247039061,-500.0,0.00024697,2]